bitfinex-derivatives/quotes_BTCF0:USTF0_20250114
["timestamp","ask_amount","ask_price","bid_price","bid_amount"]
[1736823480216,0.37190729,95029.0,95028.0,0.052635]
[1736823480518,0.37134728,95029.0,95028.0,0.052635]
[1736823481610,0.37334728,95029.0,95028.0,0.052635]
[1736823482411,0.37534728,95029.0,95028.0,0.052635]
[1736823483008,0.01454728,95029.0,95028.0,0.052635]
[1736823487509,0.01354728,95029.0,95028.0,0.052635]
[1736823488213,0.01254728,95029.0,95028.0,0.052635]
[1736823488814,0.01354728,95029.0,95028.0,0.052635]
[1736823489212,0.01454728,95029.0,95028.0,0.052635]
[1736823489412,0.01354728,95029.0,95028.0,0.052635]
[1736823491214,0.01454728,95029.0,95028.0,0.052635]
[1736823502933,0.12783973,95029.0,95028.0,0.052635]
[1736823504133,0.12783973,95029.0,95015.0,0.0313]
[1736823504134,0.052645,95011.0,95009.0,0.052645]
[1736823504435,0.052645,95010.0,95008.0,0.00157872]
[1736823504639,0.085745,95010.0,95008.0,0.00157872]
[1736823505432,0.085745,95010.0,95009.0,0.002]
[1736823506126,0.085745,95010.0,95009.0,0.008]
[1736823506640,0.085745,95010.0,95009.0,0.002]
[1736823506828,0.20006652,95010.0,95009.0,0.008]
[1736823507233,0.20006652,95010.0,95009.0,0.006]
[1736823507433,0.19906652,95010.0,95009.0,0.002]
[1736823508435,0.20982253,95010.0,95009.0,0.002]
[1736823509636,0.20982253,95010.0,95008.0,0.00157872]
[1736823509837,0.20982253,95010.0,95009.0,0.002]
[1736823512238,0.57062253,95010.0,95009.0,0.002]
[1736823512441,0.48487753,95010.0,95009.0,0.054645]
[1736823512735,0.48487753,95010.0,95009.0,0.085545]
[1736823512940,0.48487753,95010.0,95009.0,0.148245]
[1736823514330,0.48487753,95010.0,95009.0,0.147245]
[1736823514531,0.48487753,95010.0,95009.0,0.151245]
[1736823516039,0.48487753,95010.0,95009.0,0.149245]
[1736823519332,0.11232152,95010.0,95009.0,0.149245]
[1736823519744,0.11232152,95010.0,95009.0,0.151245]
[1736823520042,0.3608,95020.0,95009.0,0.151245]
[1736823520242,0.44119935,95020.0,95019.0,0.05264]
[1736823520443,0.37137776,95020.0,95019.0,0.05264]
[1736823521648,0.37237776,95020.0,95019.0,0.05264]
[1736823522748,0.37337776,95020.0,95019.0,0.05264]
[1736823523140,0.48568498,95020.0,95019.0,0.05264]
[1736823523345,0.48568498,95020.0,95019.0,0.05364]
[1736823523745,0.48568498,95020.0,95012.0,0.052643]
[1736823523950,0.53832398,95020.0,95019.0,0.001]
[1736823524158,0.53732398,95020.0,95019.0,0.001]
[1736823524544,0.42401676,95020.0,95019.0,0.001]
[1736823525654,0.53832696,95020.0,95014.0,0.052642]
[1736823525854,0.052643,95013.0,95009.0,0.052645]
[1736823528757,0.052643,95013.0,95009.0,0.053645]
[1736823529660,0.3608,95011.0,95009.0,0.053645]
[1736823530865,0.3618,95011.0,95009.0,0.053645]
[1736823531258,0.1133102,95010.0,95009.0,0.053645]
[1736823532560,0.1143102,95010.0,95009.0,0.052645]
[1736823533865,0.001,95010.0,95009.0,0.052645]
[1736823536669,0.002,95010.0,95009.0,0.052645]
[1736823539172,0.0339,95010.0,95009.0,0.052645]
[1736823539467,0.1575584,95010.0,95009.0,0.052645]
[1736823539667,0.052645,95009.0,95008.0,0.00157872]
[1736823540568,0.16596457,95009.0,95008.0,0.00157872]
[1736823541162,0.16796457,95009.0,95008.0,0.00157872]
[1736823541865,0.11531957,95009.0,95007.0,0.052646]
[1736823542462,0.004,95009.0,95007.0,0.052646]
[1736823543057,0.003,95009.0,95007.0,0.052646]
[1736823543262,0.001,95009.0,95007.0,0.052646]
[1736823543462,0.002,95009.0,95007.0,0.052646]
[1736823545362,0.002,95009.0,95008.0,0.0644]
[1736823546273,0.002,95009.0,95008.0,0.117046]
[1736823549169,0.001,95009.0,95008.0,0.117046]
[1736823549374,0.01066434,95012.0,95008.0,0.0684]
[1736823549565,0.11331957,95019.0,95008.0,0.0684]
[1736823549765,0.11331957,95019.0,95017.0,0.052641]
[1736823551370,0.11331957,95022.0,95021.0,0.052639]
[1736823553474,0.11531957,95022.0,95021.0,0.052639]
[1736823554271,0.11431957,95022.0,95021.0,0.052639]
[1736823556279,0.47511957,95022.0,95021.0,0.052639]
[1736823556680,0.47511957,95022.0,95014.0,0.052642]
[1736823556976,0.052641,95017.0,95014.0,0.052642]
[1736823557280,0.47567958,95022.0,95014.0,0.052642]
[1736823557578,0.052642,95016.0,95014.0,0.052642]
[1736823557974,0.11331957,95021.0,95014.0,0.002]
[1736823558180,0.052642,95015.0,95014.0,0.002]
[1736823559781,0.052647,95006.0,95000.0,0.05265]
[1736823561067,0.052647,95006.0,95000.0,0.05665]
[1736823561475,0.11331957,95009.0,95000.0,0.05665]
[1736823561674,0.052648,95005.0,95000.0,0.05665]
[1736823562477,0.052648,95005.0,95000.0,0.05765]
[1736823562775,0.052648,95005.0,95000.0,0.05365]
[1736823562974,0.052648,95005.0,95001.0,0.05265]
[1736823563874,0.3608,95004.0,95001.0,0.05265]
[1736823564480,0.11331957,95003.0,95001.0,0.05665]
[1736823565979,0.11331957,95003.0,95001.0,0.05365]
[1736823566187,0.11331957,95003.0,95001.0,0.05765]
[1736823568875,0.11331957,95003.0,95001.0,0.05665]
[1736823569187,0.37128415,95004.0,95003.0,0.052649]
[1736823571679,0.37228415,95004.0,95003.0,0.052649]
[1736823572790,0.37228415,95004.0,94996.0,0.052652]
[1736823573689,0.05265,95000.0,94996.0,0.052652]
[1736823574884,0.05265,95000.0,94996.0,0.053652]
[1736823576087,0.05265,95000.0,94996.0,0.056652]
[1736823576481,0.11332874,95003.0,94996.0,0.004]
[1736823576482,0.052651,94998.0,94996.0,0.004]
[1736823577690,0.16597974,94998.0,94996.0,0.004]
[1736823577989,0.29597974,94998.0,94996.0,0.004]
[1736823578585,0.11332874,94997.0,94996.0,0.004]
[1736823579681,0.16597974,94998.0,94996.0,0.004]
[1736823579886,0.29597974,94998.0,94996.0,0.001]
[1736823580087,0.29597974,94998.0,94996.0,0.004]
[1736823580390,0.16597974,94998.0,94996.0,0.004]
[1736823580883,0.11332874,94997.0,94996.0,0.004]
[1736823582189,0.16597974,94998.0,94996.0,0.004]
[1736823584579,0.001,94997.0,94974.0,0.0315]
[1736823584779,0.3608,94984.0,94975.0,0.052664]
[1736823584979,0.052662,94979.0,94975.0,0.052664]
[1736823585886,0.052662,94979.0,94977.0,0.01457909]
[1736823586488,0.052662,94979.0,94977.0,0.00557909]
[1736823586689,0.053662,94979.0,94977.0,0.01457909]
[1736823588893,0.06449466,94979.0,94977.0,0.01457909]
[1736823590398,0.11332874,94978.0,94977.0,0.01457909]
[1736823590598,0.11332874,94978.0,94977.0,0.013]
[1736823591396,0.11332874,94978.0,94977.0,0.009]
[1736823591591,0.11332874,94978.0,94977.0,0.013]
[1736823592591,0.11332874,94978.0,94977.0,0.004]
[1736823592899,0.11432874,94978.0,94977.0,0.013]
[1736823593696,0.001,94978.0,94977.0,0.013]
[1736823600612,0.053662,94978.0,94977.0,0.013]
[1736823602097,0.001,94978.0,94977.0,0.013]
[1736823602503,0.3608,94990.0,94977.0,0.013]
[1736823602706,0.3608,94990.0,94987.0,0.052657]
[1736823603504,0.3608,94990.0,94988.0,0.052656]
[1736823603712,0.3608,94990.0,94989.0,0.0638]
[1736823604011,0.3618,94990.0,94989.0,0.0638]
[1736823605309,0.3618,94990.0,94989.0,0.0658]
[1736823605803,0.3618,94990.0,94989.0,0.0986]
[1736823605804,0.3608,94990.0,94989.0,0.0986]
[1736823606003,0.3618,94990.0,94989.0,0.1046]
[1736823606613,0.47513911,94990.0,94989.0,0.1046]
[1736823607807,0.11433911,94990.0,94989.0,0.1046]
[1736823609316,0.001,94990.0,94989.0,0.073]
[1736823609517,0.001,94990.0,94989.0,0.008]
[1736823613412,0.3618,94990.0,94989.0,0.008]
[1736823614208,0.47513911,94990.0,94989.0,0.008]
[1736823614917,0.11433911,94990.0,94989.0,0.008]
[1736823615918,0.001,94990.0,94989.0,0.008]
[1736823621818,0.11433911,94990.0,94989.0,0.008]
[1736823622617,0.11433911,94990.0,94989.0,0.0736]
[1736823625809,0.11433911,94990.0,94989.0,0.4344]
[1736823626825,0.001,94990.0,94989.0,0.4344]
[1736823634025,0.11333911,95011.0,95010.0,0.052649]
[1736823635127,0.12405524,95011.0,95010.0,0.052649]
[1736823635717,0.12505524,95011.0,95010.0,0.061649]
[1736823636839,0.12705524,95011.0,95010.0,0.061649]
[1736823639028,0.11633911,95011.0,95010.0,0.061649]
[1736823639822,0.003,95011.0,95010.0,0.061649]
[1736823642331,0.11630954,95011.0,95010.0,0.061649]
[1736823643024,0.003,95011.0,95010.0,0.061649]
[1736823652431,0.003,95011.0,95010.0,0.422449]
[1736823660535,0.003,95011.0,95010.0,0.061649]
[1736823660730,0.003,95011.0,95010.0,0.422449]
[1736823661132,0.003,95011.0,95010.0,0.061649]
[1736823662934,0.003,95011.0,95010.0,0.422449]
[1736823666339,0.003,95011.0,95010.0,0.061649]
[1736823666539,0.003,95011.0,95010.0,0.422449]
[1736823676245,0.1240987,95025.0,95024.0,0.052641]
[1736823676246,0.11330211,95025.0,95024.0,0.052641]
[1736823676950,0.11330211,95027.0,95026.0,0.05264]
[1736823678156,0.11330211,95037.0,95026.0,0.05264]
[1736823678357,0.11330211,95037.0,95036.0,0.052635]
[1736823679649,0.11330211,95037.0,95036.0,0.413435]
[1736823679849,0.11330211,95037.0,95036.0,0.419435]
[1736823680457,0.0636,95045.0,95043.0,0.052631]
[1736823680458,0.11330211,95044.0,95043.0,0.052631]
[1736823682257,0.11330211,95054.0,95043.0,0.052631]
[1736823682458,0.11330211,95054.0,95053.0,0.052625]
[1736823683853,0.11330211,95054.0,95053.0,0.058625]
[1736823684359,0.064,95063.0,95061.0,0.052621]
[1736823684360,0.11330211,95062.0,95061.0,0.052621]
[1736823685967,0.11330211,95062.0,95061.0,0.053621]
[1736823686755,0.11330211,95062.0,95061.0,0.054621]
[1736823691169,0.064,95063.0,95061.0,0.054621]
[1736823692670,0.4248,95063.0,95061.0,0.053621]
[1736823692864,0.4248,95063.0,95061.0,0.055621]
[1736823696672,0.11325717,95062.0,95061.0,0.055621]
[1736823699581,0.11325717,95062.0,95061.0,0.003]
[1736823699877,0.052622,95060.0,95058.0,0.052622]
[1736823700073,0.11325717,95062.0,95050.0,0.10635368]
[1736823700273,0.11325717,95062.0,95059.0,0.052622]
[1736823700777,0.052621,95061.0,95059.0,0.052622]
[1736823702684,0.052621,95061.0,95059.0,0.055622]
[1736823702983,0.052621,95061.0,95059.0,0.056622]
[1736823703582,0.052621,95061.0,95059.0,0.055622]
[1736823703787,0.052621,95061.0,95059.0,0.056622]
[1736823704278,0.453421,95061.0,95059.0,0.004]
[1736823704989,0.11325717,95060.0,95059.0,0.004]
[1736823705179,0.25325717,95060.0,95059.0,0.004]
[1736823706285,0.11325717,95060.0,95059.0,0.004]
[1736823707590,0.16587817,95060.0,95059.0,0.004]
[1736823707891,0.32587817,95060.0,95059.0,0.004]
[1736823708782,0.42425717,95060.0,95035.0,0.00157829]
[1736823708982,0.3608,95036.0,95035.0,0.00157829]
[1736823709480,0.3915,95036.0,95035.0,0.00157829]
[1736823709885,0.6925,95036.0,94995.0,0.3608]
[1736823710091,0.052647,95015.0,95010.0,0.052649]
[1736823710292,0.3608,95020.0,95018.0,0.052644]
[1736823711493,0.11325717,95019.0,95018.0,0.052644]
[1736823712189,0.11325717,95019.0,95018.0,0.060644]
[1736823712891,0.11425717,95019.0,95018.0,0.060644]
[1736823713093,0.11525717,95019.0,95018.0,0.066644]
[1736823713891,0.12604269,95019.0,95018.0,0.066644]
[1736823729107,0.48684269,95019.0,95018.0,0.066644]
[1736823729508,0.12604269,95019.0,95018.0,0.066644]
[1736823729710,0.48684269,95019.0,95018.0,0.066644]
[1736823730301,0.62784269,95019.0,94983.0,0.3608]
[1736823730504,0.3608,94988.0,94987.0,0.117662]
[1736823730904,0.3608,94988.0,94987.0,0.052662]
[1736823731106,0.3608,94988.0,94979.0,0.052666]
[1736823731306,0.413461,94988.0,94979.0,0.052666]
[1736823731707,0.052665,94981.0,94979.0,0.052666]
[1736823732405,0.052665,94981.0,94972.0,0.3608]
[1736823732606,0.052667,94979.0,94972.0,0.3608]
[1736823732802,0.3608,94975.0,94971.0,0.05267]
[1736823733707,0.3608,94975.0,94972.0,0.001]
[1736823734007,0.413469,94975.0,94972.0,0.001]
[1736823735312,0.414469,94975.0,94972.0,0.003]
[1736823735810,0.414469,94975.0,94971.0,0.05267]
[1736823736113,0.415469,94975.0,94972.0,0.003]
[1736823737312,0.415469,94975.0,94940.0,0.46727637]
[1736823737313,0.3608,94973.0,94940.0,0.46727637]
[1736823737507,0.3608,94961.0,94959.0,0.052677]
[1736823737709,0.05268,94954.0,94951.0,0.0327]
[1736823738019,0.3608,94953.0,94941.0,0.0311]
[1736823738210,0.3608,94953.0,94947.0,0.052684]
[1736823738415,0.3608,94953.0,94948.0,0.052683]
[1736823739316,0.3618,94953.0,94952.0,0.00457966]
[1736823742816,0.3618,94953.0,94952.0,0.00157966]
[1736823743719,0.001,94953.0,94952.0,0.00157966]
[1736823744519,0.001,94953.0,94952.0,0.05426066]
[1736823748621,0.3608,94956.0,94952.0,0.00157966]
[1736823748815,0.001,94953.0,94952.0,0.05426066]
[1736823749217,0.37177363,94956.0,94952.0,0.00157966]
[1736823749525,0.001,94953.0,94952.0,0.05426066]
[1736823750824,0.37177363,94956.0,94952.0,0.00157966]
[1736823751029,0.37121362,94956.0,94953.0,0.05268]
[1736823752118,0.37221362,94956.0,94953.0,0.05268]
[1736823752525,0.37221362,94956.0,94952.0,0.00157966]
[1736823752827,0.37221362,94956.0,94954.0,0.05268]
[1736823754425,0.37221362,94956.0,94952.0,0.00157966]
[1736823754615,0.05268,94954.0,94952.0,0.00157966]
[1736823755919,0.20268,94954.0,94952.0,0.00157966]
[1736823756220,0.22268,94954.0,94952.0,0.00157966]
[1736823757418,0.17,94954.0,94952.0,0.00157966]
[1736823757617,0.171,94954.0,94952.0,0.00157966]
[1736823758029,0.171,94954.0,94953.0,0.052681]
[1736823758222,0.001,94954.0,94953.0,0.052681]
[1736823759229,0.37177363,94956.0,94955.0,0.052679]
[1736823759530,0.37121362,94956.0,94955.0,0.052679]
[1736823760117,0.3608,94956.0,94955.0,0.052679]
[1736823761127,0.3618,94956.0,94955.0,0.052679]
[1736823762928,0.3628,94956.0,94955.0,0.052679]
[1736823763531,0.3618,94956.0,94955.0,0.052679]
[1736823763832,0.3628,94956.0,94955.0,0.052679]
[1736823764927,0.3618,94956.0,94955.0,0.052679]
[1736823765132,0.3628,94956.0,94955.0,0.052679]
[1736823765832,0.3618,94956.0,94955.0,0.052679]
[1736823767129,0.3608,94956.0,94955.0,0.052679]
[1736823767325,0.3618,94956.0,94955.0,0.052679]
[1736823767732,0.3608,94956.0,94955.0,0.052679]
[1736823768039,0.3618,94956.0,94955.0,0.052679]
[1736823768333,0.3608,94956.0,94955.0,0.052679]
[1736823768536,0.3618,94956.0,94955.0,0.052679]
[1736823772533,0.47517998,94956.0,94955.0,0.052679]
[1736823779843,0.47417998,94956.0,94955.0,0.052679]
[1736823780039,0.47517998,94956.0,94955.0,0.052679]
[1736823781842,0.11437998,94956.0,94955.0,0.052679]
[1736823782852,0.001,94956.0,94955.0,0.052679]
[1736823787253,0.3618,94956.0,94955.0,0.052679]
[1736823787953,0.47518618,94956.0,94955.0,0.052679]
[1736823789855,0.11438618,94956.0,94955.0,0.052679]
[1736823790563,0.11438618,94956.0,94955.0,0.413479]
[1736823790848,0.3608,94972.0,94971.0,0.052671]
[1736823791055,0.37124428,94972.0,94971.0,0.052671]
[1736823793662,0.37124428,94972.0,94971.0,0.053671]
[1736823794761,0.48460734,94972.0,94971.0,0.053671]
[1736823797250,0.12380734,94972.0,94971.0,0.053671]
[1736823801151,0.17647734,94972.0,94971.0,0.001]
[1736823802058,0.33647734,94972.0,94971.0,0.001]
[1736823802852,0.69727734,94972.0,94971.0,0.001]
[1736823804656,0.052676,94963.0,94957.0,0.052678]
[1736823804854,0.052676,94962.0,94957.0,0.052678]
[1736823805063,0.052676,94962.0,94959.0,0.052677]
[1736823805359,0.052676,94962.0,94960.0,0.052676]
[1736823806065,0.052677,94960.0,94952.0,0.3608]
[1736823806254,0.052677,94960.0,94958.0,0.052678]
[1736823806763,0.16604006,94960.0,94958.0,0.052678]
[1736823807261,0.11336306,94960.0,94958.0,0.052678]
[1736823807562,0.11436306,94960.0,94958.0,0.053678]
[1736823808663,0.11536306,94960.0,94958.0,0.053678]
[1736823809156,0.11536306,94960.0,94958.0,0.052678]
[1736823809551,0.11436306,94960.0,94958.0,0.052678]
[1736823815461,0.16704006,94960.0,94958.0,0.052678]
[1736823816663,0.052679,94957.0,94953.0,0.08458]
[1736823816966,0.11436306,94960.0,94953.0,0.08458]
[1736823816967,0.05268,94954.0,94953.0,0.05268]
[1736823819369,0.05368,94954.0,94953.0,0.05268]
[1736823820068,0.05468,94954.0,94953.0,0.05268]
[1736823821070,0.16804306,94954.0,94953.0,0.05268]
[1736823824562,0.11536306,94954.0,94953.0,0.05268]
[1736823825175,0.002,94954.0,94953.0,0.05268]
[1736823844997,0.002,94954.0,94953.0,0.06310221]
[1736823845496,0.002,94954.0,94953.0,0.05268]
[1736823850496,0.11336819,94968.0,94967.0,0.052673]
[1736823850687,0.11336819,94968.0,94967.0,0.413473]
[1736823850893,0.11336819,94968.0,94967.0,0.052673]
[1736823851795,0.11336819,94970.0,94969.0,0.052672]
[1736823852992,0.47416819,94970.0,94969.0,0.052672]
[1736823854294,0.47416819,94970.0,94969.0,0.054672]
[1736823854800,0.47416819,94970.0,94969.0,0.056672]
[1736823858002,0.48487135,94970.0,94969.0,0.056672]
[1736823858703,0.47416819,94970.0,94969.0,0.056672]
[1736823859504,0.3608,94970.0,94969.0,0.056672]
[1736823864202,0.01058906,94972.0,94971.0,0.052671]
[1736823864403,0.0325,94978.0,94976.0,0.052668]
[1736823864601,0.0325,94978.0,94977.0,0.3608]
[1736823865703,0.11334035,94997.0,94996.0,0.052657]
[1736823866105,0.12388391,94997.0,94996.0,0.052657]
[1736823866711,0.01054356,94997.0,94996.0,0.052657]
[1736823866905,0.14554035,94998.0,94996.0,0.052657]
[1736823867703,0.009,94997.0,94996.0,0.052657]
[1736823868404,0.003,94997.0,94996.0,0.052657]
[1736823868809,0.012,94997.0,94996.0,0.052657]
[1736823869802,0.12534035,94997.0,94996.0,0.052657]
[1736823877013,0.012,94997.0,94996.0,0.052657]
[1736823878611,0.012,94997.0,94996.0,0.083557]
[1736823879711,0.012,94997.0,94996.0,0.052657]
[1736823882210,0.012,94997.0,94990.0,0.05266]
[1736823882412,0.052658,94994.0,94992.0,0.052659]
[1736823882607,0.05266,94991.0,94986.0,0.3608]
[1736823882811,0.05266,94991.0,94990.0,0.05266]
[1736823884017,0.05866,94991.0,94990.0,0.05266]
[1736823885312,0.052661,94990.0,94983.0,0.052664]
[1736823885507,0.2038,94990.0,94976.0,0.052668]
[1736823885714,0.3608,94978.0,94976.0,0.052668]
[1736823885909,0.413467,94978.0,94976.0,0.052668]
[1736823886216,0.3608,94978.0,94960.0,0.46730476]
[1736823886414,0.05267,94972.0,94960.0,0.46786476]
[1736823886615,0.0332,94971.0,94960.0,0.46786476]
[1736823887315,0.0332,94971.0,94966.0,0.00357942]
[1736823887520,0.14652774,94971.0,94966.0,0.00357942]
[1736823887723,0.14652774,94971.0,94969.0,0.052672]
[1736823888017,0.14752774,94971.0,94969.0,0.052672]
[1736823888315,0.3608,94970.0,94966.0,0.00457942]
[1736823888510,0.3938,94970.0,94966.0,0.00457942]
[1736823888917,0.052673,94967.0,94966.0,0.00457942]
[1736823889109,0.15,94967.0,94957.0,0.052678]
[1736823889310,0.3608,94958.0,94957.0,0.052678]
[1736823890819,0.47412774,94958.0,94957.0,0.052678]
[1736823891020,0.47512774,94958.0,94957.0,0.054678]
[1736823893426,0.3618,94958.0,94957.0,0.054678]
[1736823894818,0.37217149,94958.0,94957.0,0.054678]
[1736823895917,0.37217149,94958.0,94957.0,0.002]
[1736823898820,0.54217149,94958.0,94957.0,0.002]
[1736823905923,0.37217149,94958.0,94957.0,0.002]
[1736823909431,0.54217149,94958.0,94957.0,0.002]
[1736823909628,0.37217149,94958.0,94957.0,0.002]
[1736823913938,0.48555331,94958.0,94957.0,0.002]
[1736823923846,0.47518182,94958.0,94957.0,0.002]
[1736823924053,0.47518182,94958.0,94957.0,0.054678]
[1736823925140,0.11438182,94958.0,94957.0,0.054678]
[1736823925769,0.3608,94968.0,94957.0,0.002]
[1736823926069,0.052671,94971.0,94967.0,0.052673]
[1736823926370,0.052671,94971.0,94969.0,0.052671]
[1736823927364,0.3608,94976.0,94971.0,0.052671]
[1736823927567,0.413468,94976.0,94971.0,0.052671]
[1736823928770,0.42428102,94976.0,94971.0,0.052671]
[1736823929469,0.42428102,94976.0,94972.0,0.05267]
[1736823930766,0.42428102,94976.0,94972.0,0.05467]
[1736823933271,0.48718102,94976.0,94972.0,0.05467]
[1736823934578,0.43451302,94976.0,94974.0,0.052669]
[1736823935977,0.43451302,94976.0,94974.0,0.053669]
[1736823936676,0.37161302,94976.0,94974.0,0.053669]
[1736823938968,0.00158002,94977.0,94975.0,0.3608]
[1736823939171,0.00158002,94977.0,94976.0,0.052668]
[1736823939375,0.3608,95000.0,94976.0,0.413468]
[1736823939569,0.03,94999.0,94996.0,0.052657]
[1736823940367,0.03,94999.0,94998.0,0.052656]
[1736823940976,0.033,94999.0,94998.0,0.052656]
[1736823942573,0.042,94999.0,94998.0,0.052656]
[1736823942781,0.043,94999.0,94998.0,0.052656]
[1736823943176,0.035,94999.0,94998.0,0.053656]
[1736823943571,0.031,94999.0,94998.0,0.054656]
[1736823943778,0.032,94999.0,94998.0,0.054656]
[1736823944672,0.032,94999.0,94998.0,0.055656]
[1736823946174,0.032,94999.0,94998.0,0.054656]
[1736823946983,0.031,94999.0,94998.0,0.053656]
[1736823947190,0.032,94999.0,94998.0,0.054656]
[1736823948781,0.032,94999.0,94998.0,0.415456]
[1736823957485,0.002,94999.0,94998.0,0.415456]
[1736823959793,1e-06,94999.0,94998.0,0.416456]
[1736823960098,0.001001,94999.0,94998.0,0.416456]
[1736823960898,1e-06,94999.0,94998.0,0.416456]
[1736823961499,1e-06,94999.0,94998.0,0.415456]
[1736823961700,1e-06,94999.0,94998.0,0.417456]
[1736823962002,0.3608,95035.0,95012.0,0.052648]
[1736823962201,0.3608,95035.0,95022.0,0.052642]
[1736823962202,0.0311,95028.0,95022.0,0.052642]
[1736823962795,0.01037041,95027.0,95022.0,0.052642]
[1736823963194,0.01037041,95027.0,95008.0,0.3608]
[1736823963497,0.01037041,95027.0,95022.0,0.052642]
[1736823963703,0.3608,95026.0,95012.0,0.003]
[1736823963906,0.052641,95025.0,95021.0,0.052643]
[1736823964098,0.052641,95025.0,95012.0,0.003]
[1736823964496,0.052641,95025.0,95022.0,0.001]
[1736823964901,0.052641,95025.0,95021.0,0.052642]
[1736823965100,0.052641,95025.0,95021.0,0.054642]
[1736823965701,0.3608,95026.0,95022.0,0.001]
[1736823965900,0.01037041,95027.0,95022.0,0.001]
[1736823966300,0.01037041,95027.0,95021.0,0.054642]
[1736823966504,0.0307,95022.0,95021.0,0.054642]
[1736823967900,0.0307,95022.0,95021.0,0.052642]
[1736823968301,0.0307,95022.0,95021.0,0.053642]
[1736823968797,0.0307,95022.0,95021.0,0.055642]
[1736823972798,0.0307,95022.0,94991.0,0.052659]
[1736823972799,0.4015,95022.0,95013.0,0.052647]
[1736823973007,0.3608,95014.0,95006.0,0.052651]
[1736823973207,0.0312,95013.0,95006.0,0.052651]
[1736823973405,0.052649,95011.0,95006.0,0.002751]
[1736823973603,0.052652,95005.0,94999.0,0.052655]
[1736823973803,0.3608,95003.0,94999.0,0.052655]
[1736823974007,0.3608,95003.0,95000.0,0.052654]
[1736823975007,0.3608,95003.0,95002.0,0.00457879]
[1736823975716,0.3628,95003.0,95002.0,0.00757879]
[1736823976915,0.415453,95003.0,95002.0,0.00757879]
[1736823979514,0.42607562,95003.0,95002.0,0.00757879]
[1736823980407,0.37342262,95003.0,95002.0,0.00757879]
[1736823981106,0.37342262,95003.0,95002.0,0.006]
[1736823984517,0.01262262,95003.0,95002.0,0.006]
[1736823984722,0.37342262,95003.0,95002.0,0.006]
[1736823986327,0.50342262,95003.0,95002.0,0.006]
[1736823986511,0.37342262,95003.0,95002.0,0.006]
[1736823986711,0.49342262,95003.0,95002.0,0.006]
[1736823989432,0.052659,94992.0,94988.0,0.052661]
[1736823989726,0.3608,94991.0,94988.0,0.052661]
[1736823989922,0.5208,94991.0,94988.0,0.052661]
[1736823990629,0.5208,94991.0,94988.0,0.054661]
[1736823990825,0.5218,94991.0,94988.0,0.054661]
[1736823991423,0.5228,94991.0,94988.0,0.054661]
[1736823991925,0.162,94991.0,94988.0,0.054661]
[1736823992125,0.3628,94991.0,94988.0,0.054661]
[1736823994720,0.37312213,94991.0,94988.0,0.054661]
[1736823995124,0.05266,94990.0,94988.0,0.054661]
[1736823996229,0.05266,94990.0,94988.0,0.052661]
[1736823996537,0.05366,94990.0,94988.0,0.052661]
[1736823997628,0.05466,94990.0,94988.0,0.052661]
[1736823999036,0.052664,94984.0,94981.0,0.052665]
[1736823999234,0.3608,94982.0,94979.0,0.00157921]
[1736823999425,0.052665,94981.0,94979.0,0.00157921]
[1736824001533,0.053665,94981.0,94979.0,0.00157921]
[1736824002336,0.054665,94981.0,94979.0,0.00157921]
[1736824003340,0.053665,94981.0,94979.0,0.00157921]
[1736824003740,0.06437517,94981.0,94979.0,0.00157921]
[1736824003942,0.06337517,94981.0,94979.0,0.00157921]
[1736824004143,0.06437517,94981.0,94979.0,0.00157921]
[1736824004536,0.06337517,94981.0,94979.0,0.00157921]
[1736824004843,0.06437517,94981.0,94979.0,0.00157921]
[1736824006045,0.06437517,94981.0,94972.0,0.0301]
[1736824006046,0.05267,94973.0,94972.0,0.0301]
[1736824006242,0.3608,94973.0,94961.0,0.032]
[1736824006560,0.3608,94962.0,94958.0,0.052678]
[1736824007237,0.3608,94962.0,94959.0,0.052677]
[1736824007639,0.3618,94962.0,94959.0,0.052677]
[1736824008548,0.3618,94962.0,94961.0,0.052676]
[1736824009841,0.3628,94962.0,94961.0,0.052676]
[1736824010745,0.37325543,94962.0,94961.0,0.052676]
[1736824013351,0.3628,94962.0,94961.0,0.052676]
[1736824025246,0.3628,94962.0,94953.0,0.0308]
[1736824025453,0.052678,94959.0,94953.0,0.08348]
[1736824025751,0.052678,94959.0,94953.0,0.0308]
[1736824025958,0.052678,94959.0,94956.0,0.052679]
[1736824026654,0.3608,94957.0,94956.0,0.052679]
[1736824026855,0.4908,94957.0,94956.0,0.052679]
[1736824027055,0.052682,94950.0,94942.0,0.082686]
[1736824027258,0.3608,94947.0,94942.0,0.082686]
[1736824027568,0.3608,94947.0,94942.0,0.03]
[1736824027861,0.3608,94947.0,94944.0,0.052685]
[1736824028754,0.3608,94947.0,94945.0,0.052685]
[1736824028957,0.3618,94947.0,94945.0,0.052685]
[1736824030457,0.3628,94947.0,94945.0,0.052685]
[1736824032264,0.37342148,94947.0,94945.0,0.052685]
[1736824032460,0.01262148,94947.0,94945.0,0.052685]
[1736824037669,0.3608,94946.0,94945.0,0.052685]
[1736824038861,0.3618,94946.0,94945.0,0.052685]
[1736824039869,0.3628,94946.0,94945.0,0.052685]
[1736824053878,0.002,94946.0,94945.0,0.052685]
[1736824054177,0.3628,94946.0,94945.0,0.052685]
[1736824061076,0.002,94946.0,94945.0,0.052685]
[1736824061271,0.4241,94968.0,94942.0,0.3608]
[1736824061580,0.3927,94968.0,94966.0,0.052673]
[1736824062375,0.3608,94968.0,94966.0,0.052673]
[1736824063481,0.001,94968.0,94961.0,0.3608]
[1736824063685,0.001,94968.0,94967.0,0.052673]
[1736824063982,0.002,94968.0,94967.0,0.052673]
[1736824064378,0.01063649,94975.0,94961.0,0.3608]